[Event "RUS-ch Rapid Men 2018"]
[Site "Sochi"]
[Date "2018.10.06"]
[Round "6"]
[White "Rozum, Ivan"]
[Black "Smagin, Sergey"]
[Result "1/2-1/2"]
[ECO "D30"]
[WhiteElo "2573"]
[BlackElo "2551"]
[Annotator "ChessBase"]
[PlyCount "78"]
[EventDate "2018.10.05"]
[EventType "swiss"]
[EventCountry "RUS"]
[SourceTitle "playchess.com"]
[Source "ChessBase"]
[SourceQuality "1"]
[TimeControl "900+10"]

1. d4 {[%emt 0:00:00]} d5 {[%emt 0:00:00]} 2. c4 {[%emt 0:00:00]} e6 {[%emt 0:00:00]} 3. Nf3 {[%emt 0:00:13]} Nd7 {[%emt 0:00:00]} 4. Nbd2 {[%emt 0:00:20]} Ngf6 {[%emt 0:00:10]} 5. g3 {[%emt 0:00:01]} b6 {[%emt 0:00:32]} 6. Bg2 {[%emt 0:00:02]} Bb7 {[%emt 0:00:00]} 7. O-O {[%emt 0:00:05]} Be7 {[%emt 0:00:03]} 8. cxd5 {[%emt 0:00:28]} exd5 {[%emt 0:00:02]} 9. b3 {[%emt 0:01:30]} O-O {[%emt 0:00:03]} 10. Bb2 {[%emt 0:00:01]} Re8 {[%emt 0:00:33]} 11. Rc1 {[%emt 0:00:04]} Bd6 {[%emt 0:01:17]} 12. e3 {[%emt 0:00:25]} a5 {[%emt 0:02:01]} 13. a4 {[%emt 0:00:37]} Bb4 {[%emt 0:01:13]} 14. Ne5 {[%emt 0:02:35]} Nxe5 {[%emt 0:02:54]} 15. dxe5 {[%emt 0:00:02]} Nd7 {[%emt 0:00:02]} 16. Nf3 {[%emt 0:01:31]} Ba6 {[%emt 0:01:11]} 17. Qxd5 {[%emt 0:00:23]} Nc5 {[%emt 0:00:44]} 18. Nd4 {[%emt 0:05:15]} Bxf1 {[%emt 0:04:01]} 19. Qxa8 {[%emt 0:00:12]} Bxg2 {[%emt 0:00:22]} 20. Qxg2 {[%emt 0:02:08]} Nd3 {[%emt 0:00:01]} 21. Nc6 {[%emt 0:00:06]} Qc8 {[%emt 0:01:26]} 22. Rb1 {[%emt 0:00:05]} Qf5 {[%emt 0:00:14]} 23. Nd4 {[%emt 0:02:08]} Qxe5 {[%emt 0:00:43]} 24. Ba1 {[%emt 0:00:01]} c5 {[%emt 0:00:17]} 25. Nb5 {[%emt 0:00:16]} Qe6 {[%emt 0:00:46]} 26. Nc7 {[%emt 0:00:08]} Qf5 {[%emt 0:00:33]} 27. Nxe8 {[%emt 0:00:09]} Nf4 {[%emt 0:00:04]} 28. exf4 {[%emt 0:00:27]} Qxb1+ {[%emt 0:00:01]} 29. Qf1 {[%emt 0:00:01]} Qxb3 {[%emt 0:00:01]} 30. Nxg7 {[%emt 0:00:07]} c4 {[%emt 0:00:04]} 31. Nf5 {[%emt 0:00:20]} Qxa4 {[%emt 0:00:19]} 32. Be5 {[%emt 0:00:16]} Qc2 {[%emt 0:00:08]} 33. Qh3 {[%emt 0:00:08]} Qb1+ {[%emt 0:00:05]} 34. Kg2 {[%emt 0:00:04]} Qe4+ {[%emt 0:00:01]} 35. Kg1 {[%emt 0:00:04]} Qb1+ {[%emt 0:00:02]} 36. Kg2 {[%emt 0:00:28]} Qe4+ {[%emt 0:00:01]} 37. Kg1 {[%emt 0:00:09]} Qb1+ {[%emt 0:00:01]} 38. Kg2 {[%emt 0:00:18]} Qe4+ {[%emt 0:00:02]} 39. Kg1 {[%emt 0:00:00]} Qb1+ {[%emt 0:00:02]} 1/2-1/2

[Event "RUS-ch Rapid Men 2018"]
[Site "Sochi"]
[Date "2018.10.06"]
[Round "6"]
[White "Bocharov, Ivan"]
[Black "Antipov, Mikhail Al."]
[Result "0-1"]
[ECO "C03"]
[WhiteElo "2563"]
[BlackElo "2593"]
[Annotator "ChessBase"]
[PlyCount "60"]
[EventDate "2018.10.05"]
[EventType "swiss"]
[EventCountry "RUS"]
[SourceTitle "playchess.com"]
[Source "ChessBase"]
[SourceQuality "1"]
[TimeControl "900+10"]

1. e4 {[%emt 0:00:00]} e6 {[%emt 0:00:00]} 2. d4 {[%emt 0:00:00]} d5 {[%emt 0:00:00]} 3. Nd2 {[%emt 0:00:00]} Be7 {[%emt 0:00:00]} 4. c3 {[%emt 0:00:53]} c5 {[%emt 0:00:15]} 5. dxc5 {[%emt 0:01:13]} Nf6 {[%emt 0:00:31]} 6. exd5 {[%emt 0:01:26]} Qxd5 {[%emt 0:01:47]} 7. Ngf3 {[%emt 0:00:14]} Qxc5 {[%emt 0:00:37]} 8. Bd3 {[%emt 0:00:14]} O-O {[%emt 0:00:21]} 9. O-O {[%emt 0:00:09]} Qc7 {[%emt 0:01:49]} 10. Ne4 {[%emt 0:00:52]} Nxe4 {[%emt 0:01:03]} 11. Bxe4 {[%emt 0:00:01]} Nd7 {[%emt 0:00:01]} 12. Bg5 {[%emt 0:00:42]} Nf6 {[%emt 0:01:26]} 13. Qe2 {[%emt 0:01:24]} Nxe4 {[%emt 0:01:32]} 14. Qxe4 {[%emt 0:00:01]} f6 {[%emt 0:00:01]} 15. Be3 {[%emt 0:00:05]} e5 {[%emt 0:00:29]} 16. Rfd1 {[%emt 0:00:34]} a5 {[%emt 0:00:58]} 17. Qd5+ {[%emt 0:05:05]} Kh8 {[%emt 0:00:17]} 18. Nd2 {[%emt 0:00:03]} Ra6 {[%emt 0:00:18]} 19. Ne4 {[%emt 0:00:21]} Rc6 {[%emt 0:00:30]} 20. Qb5 {[%emt 0:00:34]} f5 {[%emt 0:00:55]} 21. Nd2 {[%emt 0:00:53]} f4 {[%emt 0:00:25]} 22. Ba7 {[%emt 0:00:01]} Ra6 {[%emt 0:00:34]} 23. Nc4 {[%emt 0:00:35]} Rxa7 {[%emt 0:00:03]} 24. Nxe5 {[%emt 0:00:02]} Ra6 {[%emt 0:00:21]} 25. Nd7 {[%emt 0:01:02]} Rg8 {[%emt 0:00:06]} 26. Rd5 {[%emt 0:00:25]} Rd6 {[%emt 0:01:12]} 27. Ne5 {[%emt 0:00:01]} Rf8 {[%emt 0:00:21]} 28. Re1 {[%emt 0:00:56]} Be6 {[%emt 0:00:39]} 29. Rc5 {[%emt 0:00:52]} Rd1 {[%emt 0:01:08]} 30. Rxd1 {[%emt 0:00:25]} Bxc5 {[%emt 0:00:06]} 0-1

[Event "RUS-ch Rapid Men 2018"]
[Site "Sochi"]
[Date "2018.10.06"]
[Round "6"]
[White "Yuffa, Daniil"]
[Black "Hasangatin, Ramil"]
[Result "1/2-1/2"]
[ECO "E62"]
[WhiteElo "2563"]
[BlackElo "2485"]
[Annotator "ChessBase"]
[PlyCount "90"]
[EventDate "2018.10.05"]
[EventType "swiss"]
[EventCountry "RUS"]
[SourceTitle "playchess.com"]
[Source "ChessBase"]
[SourceQuality "1"]
[TimeControl "900+10"]

1. d4 {[%emt 0:00:00]} d6 {[%emt 0:00:00]} 2. Nf3 {[%emt 0:00:00]} Nf6 {[%emt 0:00:00]} 3. c4 {[%emt 0:00:00]} g6 {[%emt 0:00:00]} 4. g3 {[%emt 0:00:24]} Bg7 {[%emt 0:00:01]} 5. Bg2 {[%emt 0:00:01]} c6 {[%emt 0:00:15]} 6. O-O {[%emt 0:00:15]} O-O {[%emt 0:00:02]} 7. Nc3 {[%emt 0:00:01]} Bf5 {[%emt 0:00:02]} 8. Ne1 {[%emt 0:00:02]} e5 {[%emt 0:00:09]} 9. d5 {[%emt 0:00:14]} cxd5 {[%emt 0:00:06]} 10. cxd5 {[%emt 0:00:05]} a5 {[%emt 0:01:34]} 11. Nc2 {[%emt 0:03:03]} Na6 {[%emt 0:00:38]} 12. Na3 {[%emt 0:02:44]} Nc5 {[%emt 0:04:40]} 13. Bg5 {[%emt 0:00:53]} Qb6 {[%emt 0:00:46]} 14. Nc4 {[%emt 0:03:13]} Qa6 {[%emt 0:00:01]} 15. Nd2 {[%emt 0:01:33]} b5 {[%emt 0:00:46]} 16. e4 {[%emt 0:00:04]} Bd7 {[%emt 0:01:38]} 17. a3 {[%emt 0:00:13]} Rfc8 {[%emt 0:00:36]} 18. Qf3 {[%emt 0:01:23]} Bg4 {[%emt 0:01:33]} 19. Qe3 {[%emt 0:00:09]} Na4 {[%emt 0:00:02]} 20. Nxa4 {[%emt 0:00:15]} bxa4 {[%emt 0:00:01]} 21. Rfc1 {[%emt 0:00:12]} Bd7 {[%emt 0:01:40]} 22. Bf1 {[%emt 0:00:12]} Bb5 {[%emt 0:00:09]} 23. Rc3 {[%emt 0:00:45]} Bxf1 {[%emt 0:00:21]} 24. Rxf1 {[%emt 0:00:06]} Rxc3 {[%emt 0:01:06]} 25. bxc3 {[%emt 0:00:03]} Nd7 {[%emt 0:00:02]} 26. Rb1 {[%emt 0:00:14]} Rc8 {[%emt 0:01:14]} 27. c4 {[%emt 0:00:16]} f6 {[%emt 0:00:24]} 28. Bh6 {[%emt 0:00:15]} Rc7 {[%emt 0:00:48]} 29. Bxg7 {[%emt 0:00:15]} Kxg7 {[%emt 0:00:01]} 30. Rb5 {[%emt 0:01:17]} Rxc4 {[%emt 0:01:13]} 31. Nxc4 {[%emt 0:00:03]} Qxb5 {[%emt 0:00:01]} 32. Nxd6 {[%emt 0:00:11]} Qb6 {[%emt 0:00:15]} 33. Qxb6 {[%emt 0:00:50]} Nxb6 {[%emt 0:00:01]} 34. Kf1 {[%emt 0:00:28]} Kf8 {[%emt 0:00:01]} 35. Ke2 Ke7 36. Nb5 {[%emt 0:00:20]} f5 {[%emt 0:00:01]} 37. Kd3 {[%emt 0:00:30]} Kf6 {[%emt 0:00:02]} 38. Nd6 {[%emt 0:00:11]} Ke7 {[%emt 0:00:20]} 39. Nb7 {[%emt 0:00:23]} fxe4+ {[%emt 0:00:04]} 40. Kxe4 {[%emt 0:00:16]} Nc4 {[%emt 0:00:01]} 41. Nc5 {[%emt 0:00:15]} Kd6 {[%emt 0:00:10]} 42. Nb7+ {[%emt 0:00:06]} Ke7 {[%emt 0:00:01]} 43. Nc5 {[%emt 0:00:13]} Kd6 {[%emt 0:00:01]} 44. Nb7+ {[%emt 0:00:13]} Kc7 {[%emt 0:00:00]} 45. Nc5 {[%emt 0:00:03]} Kd6 {[%emt 0:00:06]} 1/2-1/2

[Event "RUS-ch Rapid Men 2018"]
[Site "Sochi"]
[Date "2018.10.06"]
[Round "6"]
[White "Bocharov, Dmitry"]
[Black "Sakaev, Konstantin"]
[Result "0-1"]
[ECO "A13"]
[WhiteElo "2557"]
[BlackElo "2584"]
[Annotator "RC"]
[PlyCount "136"]
[EventDate "2018.10.05"]
[EventType "swiss"]
[EventCountry "RUS"]
[SourceTitle "playchess.com"]
[Source "ChessBase"]
[SourceQuality "1"]
[TimeControl "900+10"]

1. c4 {[%emt 0:00:00]} e6 {[%emt 0:00:00]} 2. Nf3 {[%emt 0:00:04]} d5 {[%emt 0:00:08]} 3. e3 {[%emt 0:00:10]} Nf6 {[%emt 0:00:04]} 4. Nc3 {[%emt 0:00:03]} c5 {[%emt 0:01:02]} 5. b3 {[%emt 0:00:54]} d4 {[%emt 0:00:32]} 6. Na4 {[%emt 0:01:18]} Nc6 {[%emt 0:00:10]} 7. Ba3 {[%emt 0:01:38]} b6 {[%emt 0:00:21]} 8. exd4 {[%emt 0:02:13]} Nxd4 {[%emt 0:00:05]} 9. Nxd4 {[%emt 0:00:02]} Qxd4 {[%emt 0:00:03]} 10. Be2 {[%emt 0:00:08]} Bb7 {[%emt 0:00:16]} 11. O-O {[%emt 0:02:22]} Rd8 {[%emt 0:00:13]} 12. Bf3 {[%emt 0:00:55]} Bxf3 {[%emt 0:00:09]} 13. Qxf3 {[%emt 0:00:02]} Be7 {[%emt 0:00:06]} 14. Rad1 {[%emt 0:02:23]} O-O {[%emt 0:00:19]} 15. d3 {[%emt 0:00:08]} Rd7 {[%emt 0:01:25]} 16. h3 {[%emt 0:00:49]} Rfd8 {[%emt 0:00:12]} 17. Rfe1 {[%emt 0:00:32]} Qh4 {[%emt 0:00:38]} 18. Nc3 {[%emt 0:00:18]} Qh5 {[%emt 0:00:31]} 19. Re3 {[%emt 0:02:33]} Qxf3 {[%emt 0:03:14]} 20. Rxf3 {[%emt 0:00:01]} Bd6 {[%emt 0:02:48]} 21. Kf1 {[%emt 0:00:19]} Be5 {[%emt 0:00:14]} 22. Ne2 {[%emt 0:00:20]} Bb8 {[%emt 0:00:19]} 23. Nc3 {[%emt 0:00:24]} Be5 {[%emt 0:01:46]} 24. Ne2 {[%emt 0:00:02]} Ne8 {[%emt 0:00:08]} 25. Re3 {[%emt 0:00:30]} Bf6 {[%emt 0:00:02]} 26. g4 {[%emt 0:00:18]} Nd6 {[%emt 0:00:33]} 27. Rb1 {[%emt 0:00:26]} Nb7 {[%emt 0:00:04]} 28. Rd1 {[%emt 0:00:26]} Na5 {[%emt 0:00:02]} 29. Ke1 {[%emt 0:00:20]} Nc6 {[%emt 0:00:11]} 30. Kd2 {[%emt 0:00:05]} a5 {[%emt 0:01:13]} 31. Kc2 {[%emt 0:00:06]} g5 {[%emt 0:01:07]} 32. Kb1 {[%emt 0:00:11]} h6 {[%emt 0:00:06]} 33. Bb2 {[%emt 0:00:08]} Bxb2 {[%emt 0:00:58]} 34. Kxb2 {[%emt 0:00:01]} Nb4 {[%emt 0:00:01]} 35. Nc1 {[%emt 0:00:08]} Kg7 {[%emt 0:00:01]} 36. a3 {[%emt 0:00:04]} Nc6 {[%emt 0:00:02]} 37. Ne2 {[%emt 0:00:06]} Nd4 {[%emt 0:00:15]} 38. Nxd4 {[%emt 0:00:03]} Rxd4 {[%emt 0:00:02]} 39. Kc3 {[%emt 0:00:15]} h5 {[%emt 0:00:31]} 40. f3 {[%emt 0:00:15]} Kf6 {[%emt 0:00:37]} 41. Rb1 {[%emt 0:00:03]} Ra8 {[%emt 0:00:34]} 42. Rb2 {[%emt 0:00:21]} h4 {[%emt 0:00:05]} 43. Rf2 {[%emt 0:00:16]} Rb8 {[%emt 0:00:31]} 44. Re4 {[%emt 0:00:20]} Rbd8 {[%emt 0:00:12]} 45. Re3 {[%emt 0:00:03]} Ke7 {[%emt 0:00:04]} 46. Rb2 {[%emt 0:00:03]} Ra8 {[%emt 0:00:02]} 47. Re4 {[%emt 0:00:10]} Rad8 {[%emt 0:00:20]} 48. Re3 {[%emt 0:00:08]} Rf4 {[%emt 0:00:11]} 49. Ra2 {[%emt 0:00:10]} Rb8 {[%emt 0:00:15]} 50. b4 {[%emt 0:00:26]} axb4+ {[%emt 0:00:08]} 51. axb4 {[%emt 0:00:01]} cxb4+ {[%emt 0:00:01]} 52. Kxb4 {[%emt 0:00:02]} b5 {[%emt 0:00:00]} 53. Kc3 {[%emt 0:00:11]} bxc4 {[%emt 0:00:02]} 54. dxc4 {[%emt 0:00:01]} Rb1 {[%emt 0:00:02]} 55. Rc2 {[%emt 0:00:20]} Rf1 {[%emt 0:00:25]} 56. c5 {[%emt 0:00:07]} R1xf3 {[%emt 0:00:23]} 57. Kd3 {[%emt 0:00:03]} Rxe3+ {[%emt 0:00:29]} 58. Kxe3 {[%emt 0:00:01]} Kd7 {[%emt 0:00:00]} 59. c6+ {[%emt 0:00:03]} Kc7 {[%emt 0:00:01]} 60. Rc5 {[%emt 0:00:10]} f6 {[%emt 0:00:01]} 61. Rc1 {[%emt 0:00:01]} e5 {[%emt 0:00:31]} 62. Rc3 {[%emt 0:00:11]} Rd4 {[%emt 0:00:07]} 63. Ra3 {[%emt 0:00:02]} Rc4 {[%emt 0:00:19]} 64. Ra7+ {[%emt 0:00:05]} Kd6 {[%emt 0:00:15]} 65. Kd3 {[%emt 0:01:11]} Rxc6 {[%emt 0:00:03]} 66. Ra8 {[%emt 0:00:17]} Kd5 {[%emt 0:00:13]} 67. Rf8 {[%emt 0:00:06]} Ra6 {[%emt 0:00:03]} 68. Rd8+ {[%emt 0:00:02]} Ke6 {[%emt 0:00:05] Kd4} 0-1

[Event "RUS-ch Rapid Men 2018"]
[Site "Sochi"]
[Date "2018.10.06"]
[Round "6"]
[White "Potapov, Pavel"]
[Black "Timofeev, Artyom"]
[Result "1/2-1/2"]
[ECO "A06"]
[WhiteElo "2515"]
[BlackElo "2580"]
[Annotator "ChessBase"]
[PlyCount "97"]
[EventDate "2018.10.05"]
[EventType "swiss"]
[EventCountry "RUS"]
[SourceTitle "playchess.com"]
[Source "ChessBase"]
[SourceQuality "1"]
[TimeControl "900+10"]

1. Nf3 {[%emt 0:00:00]} d5 {[%emt 0:00:03]} 2. g3 {[%emt 0:00:00]} g6 {[%emt 0:00:49]} 3. Bg2 {[%emt 0:00:00]} Bg7 {[%emt 0:00:02]} 4. O-O {[%emt 0:00:03]} e5 {[%emt 0:00:48]} 5. d3 {[%emt 0:00:06]} Ne7 {[%emt 0:00:08]} 6. e4 {[%emt 0:00:39]} O-O {[%emt 0:00:17]} 7. Nbd2 {[%emt 0:00:39]} Nbc6 {[%emt 0:01:10]} 8. Re1 {[%emt 0:00:39]} d4 {[%emt 0:00:20]} 9. Nf1 {[%emt 0:00:38]} a5 {[%emt 0:00:14]} 10. a4 {[%emt 0:00:12]} Nb4 {[%emt 0:00:10]} 11. Bd2 {[%emt 0:01:07]} Nec6 {[%emt 0:00:13]} 12. h3 {[%emt 0:00:26]} Bd7 {[%emt 0:00:31]} 13. g4 {[%emt 0:00:15]} Qe7 {[%emt 0:00:42]} 14. Re2 {[%emt 0:01:15]} Nd8 {[%emt 0:00:43]} 15. Be1 {[%emt 0:01:15]} Ne6 {[%emt 0:00:13]} 16. c3 {[%emt 0:00:11]} Nc6 {[%emt 0:00:04]} 17. Rc2 {[%emt 0:01:48]} Rac8 {[%emt 0:01:38]} 18. Ng3 {[%emt 0:00:17]} Nf4 {[%emt 0:01:29]} 19. cxd4 {[%emt 0:00:46]} exd4 {[%emt 0:00:04]} 20. Bf1 {[%emt 0:01:48]} h5 {[%emt 0:00:50]} 21. gxh5 {[%emt 0:00:37]} Nxh3+ {[%emt 0:00:10]} 22. Bxh3 {[%emt 0:00:32]} Bxh3 {[%emt 0:00:02]} 23. Nh2 {[%emt 0:00:52]} Nb4 {[%emt 0:01:27]} 24. Bxb4 {[%emt 0:00:12]} axb4 {[%emt 0:00:03]} 25. f4 {[%emt 0:00:25]} c5 {[%emt 0:01:33]} 26. Qf3 {[%emt 0:00:10]} b3 {[%emt 0:00:24]} 27. Rf2 {[%emt 0:00:30]} c4 {[%emt 0:00:04]} 28. dxc4 {[%emt 0:00:21]} Rxc4 {[%emt 0:00:05]} 29. hxg6 {[%emt 0:00:25]} fxg6 {[%emt 0:00:02]} 30. Qxb3 {[%emt 0:00:03]} Qb4 {[%emt 0:01:11]} 31. Qd3 {[%emt 0:01:07]} Rc6 {[%emt 0:01:05]} 32. Nh5 {[%emt 0:00:35]} gxh5 {[%emt 0:00:42]} 33. Qxh3 {[%emt 0:00:02]} d3 {[%emt 0:00:01]} 34. Qg2 {[%emt 0:01:03]} Kh8 {[%emt 0:01:56]} 35. Kh1 {[%emt 0:00:05]} Re6 {[%emt 0:00:15]} 36. Rg1 {[%emt 0:00:08]} Qxe4 {[%emt 0:00:09]} 37. Nf3 {[%emt 0:00:11]} Re7 {[%emt 0:00:12]} 38. Nh4 {[%emt 0:00:39]} Rf6 {[%emt 0:00:28]} 39. Rf3 {[%emt 0:00:49]} Rd7 {[%emt 0:00:03]} 40. Kh2 {[%emt 0:00:29]} d2 {[%emt 0:00:11]} 41. Rd1 {[%emt 0:00:01]} Rfd6 {[%emt 0:00:38]} 42. Rf2 {[%emt 0:00:15]} Qxg2+ {[%emt 0:00:14]} 43. Rxg2 {[%emt 0:00:02]} Kh7 {[%emt 0:00:28]} 44. Nf5 {[%emt 0:00:01]} Rf6 {[%emt 0:00:10]} 45. Nxg7 {[%emt 0:00:05]} Rxg7 {[%emt 0:00:03]} 46. Rxg7+ {[%emt 0:00:03]} Kxg7 {[%emt 0:00:01]} 47. Rxd2 {[%emt 0:00:02]} Rxf4 {[%emt 0:00:01]} 48. Rd7+ {[%emt 0:00:06]} Kg6 {[%emt 0:00:17]} 49. Rxb7 {[%emt 0:00:07]} 1/2-1/2

[Event "RUS-ch Rapid Men 2018"]
[Site "Sochi"]
[Date "2018.10.06"]
[Round "6"]
[White "Drygalov, Sergey"]
[Black "Stambulian, Arsen"]
[Result "1-0"]
[ECO "D74"]
[WhiteElo "2446"]
[BlackElo "2339"]
[Annotator "NA"]
[PlyCount "107"]
[EventDate "2018.10.05"]
[EventType "swiss"]
[EventCountry "RUS"]
[SourceTitle "playchess.com"]
[Source "ChessBase"]
[SourceQuality "1"]
[TimeControl "900+10"]

1. d4 {[%emt 0:00:00]} Nf6 {[%emt 0:00:00]} 2. Nf3 {[%emt 0:00:00]} g6 {[%emt 0:00:00]} 3. c4 {[%emt 0:00:00]} Bg7 {[%emt 0:00:00]} 4. g3 {[%emt 0:00:00]} O-O {[%emt 0:00:00]} 5. Bg2 {[%emt 0:00:00]} d5 {[%emt 0:00:07]} 6. cxd5 {[%emt 0:00:00]} Nxd5 {[%emt 0:00:01]} 7. O-O {[%emt 0:00:01]} Nc6 {[%emt 0:00:06]} 8. Nc3 {[%emt 0:00:56]} Nb6 {[%emt 0:00:12]} 9. e3 {[%emt 0:00:02]} e5 {[%emt 0:00:12]} 10. d5 {[%emt 0:00:09]} Na5 {[%emt 0:00:02]} 11. e4 {[%emt 0:00:01]} c6 {[%emt 0:00:09]} 12. Bg5 {[%emt 0:00:01]} Qd6 {[%emt 0:00:46]} 13. Rc1 {[%emt 0:03:43]} f6 {[%emt 0:00:45]} 14. Be3 {[%emt 0:04:13]} Nac4 {[%emt 0:00:22]} 15. Bxb6 {[%emt 0:00:12]} Nxb6 {[%emt 0:00:07]} 16. dxc6 {[%emt 0:00:06]} Qxd1 {[%emt 0:00:08]} 17. Rfxd1 {[%emt 0:00:02]} bxc6 {[%emt 0:00:06]} 18. b3 {[%emt 0:01:07]} Rf7 {[%emt 0:00:25]} 19. Rd8+ {[%emt 0:00:34]} Rf8 {[%emt 0:00:24]} 20. Rd6 {[%emt 0:00:07]} Bb7 {[%emt 0:00:14]} 21. Rcd1 {[%emt 0:00:27]} Rf7 {[%emt 0:00:17]} 22. Bh3 {[%emt 0:00:34]} Bf8 {[%emt 0:00:14]} 23. R6d2 {[%emt 0:01:06]} Bc8 {[%emt 0:00:55]} 24. Bxc8 {[%emt 0:00:22]} Rxc8 {[%emt 0:00:04]} 25. Rc2 {[%emt 0:00:06]} Rcc7 {[%emt 0:01:26]} 26. Kf1 {[%emt 0:00:33]} Rfd7 {[%emt 0:00:07]} 27. Rxd7 {[%emt 0:00:06]} Rxd7 {[%emt 0:00:01]} 28. Ke2 {[%emt 0:00:05]} Kf7 {[%emt 0:00:16]} 29. Nd1 {[%emt 0:00:07]} Rd6 {[%emt 0:00:40]} 30. Ne3 {[%emt 0:00:15]} h5 {[%emt 0:00:03]} 31. Nd2 {[%emt 0:00:18]} Ke6 {[%emt 0:00:48]} 32. Ndc4 {[%emt 0:00:28]} Nxc4 {[%emt 0:00:06]} 33. Nxc4 {[%emt 0:00:02]} Rd4 {[%emt 0:00:11]} 34. f3 {[%emt 0:00:05]} f5 {[%emt 0:00:52]} 35. Ne3 {[%emt 0:01:37]} c5 {[%emt 0:01:15]} 36. Rc4 {[%emt 0:01:28]} fxe4 {[%emt 0:00:12]} 37. fxe4 {[%emt 0:00:00]} Bh6 {[%emt 0:00:10]} 38. Rxd4 {[%emt 0:00:05]} cxd4 {[%emt 0:00:16]} 39. Nc4 {[%emt 0:00:06]} Bf8 {[%emt 0:00:10]} 40. a3 {[%emt 0:01:11]} g5 {[%emt 0:00:07]} 41. h3 {[%emt 0:00:16]} Bd6 {[%emt 0:00:34]} 42. g4 {[%emt 0:00:04]} hxg4 {[%emt 0:00:04]} 43. hxg4 {[%emt 0:00:01]} Bc7 {[%emt 0:00:01]} 44. b4 {[%emt 0:00:17]} Kd7 {[%emt 0:00:12]} 45. Nd2 {[%emt 0:00:14]} a5 {[%emt 0:04:07]} 46. bxa5 {[%emt 0:00:22]} Bxa5 {[%emt 0:00:02]} 47. Nf3 {[%emt 0:00:01]} Ke6 {[%emt 0:01:53]} 48. Nxg5+ {[%emt 0:00:02]} Kf6 {[%emt 0:00:01]} 49. Nf3 {[%emt 0:00:01]} Ke6 {[%emt 0:00:16]} 50. Kd3 {[%emt 0:00:10]} Kd6 {[%emt 0:00:36]} 51. Kc4 {[%emt 0:00:05]} Ke6 {[%emt 0:00:03]} 52. a4 {[%emt 0:00:02]} Kd6 {[%emt 0:00:10]} 53. g5 {[%emt 0:00:35]} Ke6 {[%emt 0:00:02]} 54. Kb5 {[%emt 0:00:36]} 1-0

[Event "RUS-ch Rapid Men 2018"]
[Site "Sochi"]
[Date "2018.10.06"]
[Round "6"]
[White "Tsoi, Dmitry"]
[Black "Chigaev, Maksim"]
[Result "0-1"]
[ECO "D76"]
[WhiteElo "2429"]
[BlackElo "2599"]
[Annotator "ChessBase"]
[PlyCount "124"]
[EventDate "2018.10.05"]
[EventType "swiss"]
[EventCountry "RUS"]
[SourceTitle "playchess.com"]
[Source "ChessBase"]
[SourceQuality "1"]
[TimeControl "900+10"]

1. Nf3 {[%emt 0:00:00]} Nf6 {[%emt 0:00:00]} 2. g3 {[%emt 0:00:00]} g6 {[%emt 0:00:00]} 3. Bg2 {[%emt 0:00:00]} Bg7 {[%emt 0:00:00]} 4. O-O {[%emt 0:00:00]} O-O {[%emt 0:00:00]} 5. c4 {[%emt 0:00:00]} d5 {[%emt 0:00:00]} 6. cxd5 {[%emt 0:00:02]} Nxd5 {[%emt 0:00:00]} 7. d4 {[%emt 0:00:10]} Nb6 {[%emt 0:00:01]} 8. Nc3 {[%emt 0:00:03]} Nc6 {[%emt 0:00:01]} 9. d5 {[%emt 0:01:46]} Na5 {[%emt 0:01:46]} 10. e4 {[%emt 0:00:33]} c6 {[%emt 0:00:05]} 11. dxc6 {[%emt 0:01:04]} Nxc6 {[%emt 0:00:20]} 12. Be3 {[%emt 0:00:24]} Nc4 {[%emt 0:00:41]} 13. Qe2 {[%emt 0:00:02]} Nxe3 {[%emt 0:00:33]} 14. Qxe3 {[%emt 0:00:02]} Qb6 {[%emt 0:00:31]} 15. Qxb6 {[%emt 0:02:42]} axb6 {[%emt 0:00:02]} 16. Rfd1 {[%emt 0:00:26]} b5 {[%emt 0:06:16]} 17. Nxb5 {[%emt 0:00:39]} Bxb2 {[%emt 0:00:02]} 18. Rab1 {[%emt 0:00:01]} Bg7 {[%emt 0:00:23]} 19. Rd2 {[%emt 0:00:12]} Rd8 {[%emt 0:00:15]} 20. Rbd1 {[%emt 0:01:03]} Rxd2 {[%emt 0:00:57]} 21. Rxd2 {[%emt 0:00:03]} Ra5 {[%emt 0:03:03]} 22. Nbd4 {[%emt 0:00:44]} Nxd4 {[%emt 0:00:13]} 23. Nxd4 {[%emt 0:00:01]} Bxd4 {[%emt 0:00:19]} 24. Rxd4 {[%emt 0:00:02]} Kg7 {[%emt 0:00:02]} 25. Rc4 {[%emt 0:02:08]} Be6 {[%emt 0:00:11]} 26. Rb4 {[%emt 0:00:12]} Rxa2 {[%emt 0:00:18]} 27. f4 {[%emt 0:00:03]} Ra1+ {[%emt 0:00:28]} 28. Kf2 {[%emt 0:00:01]} Ra2+ {[%emt 0:00:02]} 29. Kg1 {[%emt 0:00:03]} Bc8 {[%emt 0:00:15]} 30. e5 {[%emt 0:00:02]} Ra8 {[%emt 0:00:23]} 31. Rb5 {[%emt 0:01:15]} Rb8 {[%emt 0:00:16]} 32. Rb6 {[%emt 0:00:02]} Kf8 {[%emt 0:00:06]} 33. Bd5 {[%emt 0:02:02]} Ke8 {[%emt 0:00:37]} 34. Kf2 {[%emt 0:00:03]} e6 {[%emt 0:00:20]} 35. Bf3 {[%emt 0:00:09]} Kd8 {[%emt 0:00:01]} 36. g4 {[%emt 0:00:02]} Kc7 {[%emt 0:00:01]} 37. Rb2 {[%emt 0:00:04]} Bd7 {[%emt 0:00:08]} 38. Kg3 {[%emt 0:00:04]} Bc6 {[%emt 0:00:05]} 39. Rc2 {[%emt 0:00:15]} Rd8 {[%emt 0:00:11]} 40. Kh4 {[%emt 0:00:01]} h6 {[%emt 0:00:14]} 41. Rc3 {[%emt 0:00:43]} Rd4 {[%emt 0:00:38]} 42. Kg3 {[%emt 0:00:02]} g5 {[%emt 0:00:58]} 43. fxg5 {[%emt 0:00:10]} hxg5 {[%emt 0:00:02]} 44. h4 {[%emt 0:00:04]} gxh4+ {[%emt 0:00:07]} 45. Kxh4 {[%emt 0:00:00]} Rf4 {[%emt 0:00:07]} 46. Bd1 {[%emt 0:01:10]} Kd7 {[%emt 0:00:41]} 47. Kg5 {[%emt 0:00:04]} Rf1 {[%emt 0:00:01]} 48. Be2 {[%emt 0:00:28]} Re1 {[%emt 0:00:10]} 49. Rc2 {[%emt 0:00:01]} Ke7 {[%emt 0:00:05]} 50. Kh6 {[%emt 0:00:18]} Rh1+ {[%emt 0:00:08]} 51. Kg7 {[%emt 0:00:03]} Rh2 {[%emt 0:00:15]} 52. Kg8 {[%emt 0:01:13]} Rg2 {[%emt 0:00:18]} 53. Kg7 {[%emt 0:00:10]} Rf2 {[%emt 0:00:22]} 54. Kg8 {[%emt 0:00:12]} Bb5 {[%emt 0:00:27]} 55. Rc7+ {[%emt 0:00:36]} Kd8 {[%emt 0:00:01]} 56. Rxf7 {[%emt 0:00:14]} Rxf7 {[%emt 0:00:39]} 57. Bxb5 {[%emt 0:00:02]} Ke7 {[%emt 0:00:00]} 58. g5 {[%emt 0:00:17]} Rf5 {[%emt 0:00:03]} 59. g6 {[%emt 0:00:01]} Rxe5 {[%emt 0:00:06]} 60. Bd3 {[%emt 0:00:01]} Kf6 {[%emt 0:00:08]} 61. Bb1 {[%emt 0:00:29]} Rg5 {[%emt 0:00:05]} 62. Kh7 {[%emt 0:00:01]} b5 {[%emt 0:00:05]} 0-1